Workbook

Sheet Projektbudget
A1: Projektbudget - "Projekttitel"
A2: Projektlaufzeit: TT.MM.JJJJ - TT.MM.JJJJ (xx Monate)
A4: Gesamtprojektkosten
A5: Pos.Nr. | B5: Budgetposition | C5: Anmerkungen/Kalkulationsgrundlagen (i) | D5: Betrag | E5: Korrekturen | F5: Anerkannt | G5: Förderbar
A6: 1 | B6: Interne Personalkosten (i) | D6: =SUM(D7:D11) -> € 0.00 | E6: =SUM(E7:E11) -> € 0.00 | F6: =SUM(F7:F11) -> € 0.00
A12: 2 | B12: Externe Honorarkosten (i) | D12: =SUM(D13:D17) -> € 0.00 | E12: =SUM(E13:E17) -> € 0.00 | F12: =SUM(F13:F17) -> € 0.00
A18: 3 | B18: Externe Sachkosten (i) | D18: =SUM(D19:D23) -> € 0.00 | E18: =SUM(E19:E23) -> € 0.00 | F18: =SUM(F19:F23) -> € 0.00
A24: 4 | B24: Overheadkosten (i) | D24: =SUM(D25) -> € 0.00 | E24: =SUM(E25) -> € 0.00 | F24: =SUM(F25) -> € 0.00
A26: Gesamtprojektkosten (inkl./exkl. USt) (i) | D26: =SUM(D18,D12,D6,D24) -> € 0.00 | E26: =SUM(E18,E12,E6,E24) -> € 0.00 | F26: € 0.00
A27: davon beim FGÖ beantragter Förderbetrag (bitte Zahl eingeben)
A28: (i) Hier werden diverse Hilfestellungen und Informationen zur Verfügung gestellt. Zum Anzeigen bitte die jeweilige Zelle auswählen. Hinweis: Bitte beachten Sie die spezifischen Regelungen bei Projekten der Fort- und Weiterbildung (siehe Website).
A30: Projektfinanzierung
A31: Pos.Nr. | B31: Finanzierungsquelle | C31: Anmerkungen | D31: Betrag
A32: 1 | B32: beim FGÖ beantrager Förderbetrag (wird automatisch von oben übernommen) | D32: =D27 -> € 0.00
A33: 2 | B33: Liquide Eigenmittel Antragssteller/in (i) | D33: =SUM(D34) -> € 0.00
A35: 3 | B35: Andere Geldgeber/innen (i) | D35: =SUM(D36:D38) -> € 0.00
F37: Zielgruppengröße
A39: 4 | B39: Sonstige projektbezogene Finanzierungsquellen (i) | D39: =SUM(D40:D42) -> € 0.00
G41: ja
G42: nein
A43: Summe der Finanzierung | D43: =SUM(D39,D35,D33,D32) -> € 0.00

Sheet Personalkosten Angestellte
A1: Personalkostenkalkulation für bestehendes Dienstverhältnis/Neuanstellung/Aufstockung
A3: Lohnnebenkosten Stand 01.01.2024: | B3: =(20.98+3.7+3+1.53)/100 -> 29.21% | C3: für den Monatsbruttobezug (ohne Sonderzahl.) | E3: =(20.98+3.7+3+1.53)/100 -> 29.21% | F3: für die Sonderzahlungen
B4: Dieser Satz setzt sich wie folgt zusammen: 20,98 % Sozialversicherungsbeitrag Dienstgeber 3,7 % Dienstgeberbeitrag (DB) 3 % Kommunalsteuer 1,53 % Mitarbeitervorsorge (MV) | E4: Dieser Satz setzt sich wie folgt zusammen: 20,98 % Sozialversicherungsbeitrag Dienstgeber 3,7 % Dienstgeberbeitrag (DB) 3 % Kommunalsteuer 1,53 % Mitarbeitervorsorge (MV)
B5: Änderungen der Lohnnebenkostensätze sind ggf. selbst anzupassen - dazu bitte die jeweilige Summe anklicken und die Formel korrigieren!
B7: Bitte hier die Dienstnehmer/-innen eintragen | G7: Beispiel
A8: Name der Dienstnehmerin/ des Dienstnehmers | G8: Maria Musterfrau
A9: Bitte das entspr. Dienstverhältnis aus der Dropdown-Liste auswählen | G9: Bestehendes Dienstverhältnis
A10: Tätigkeitbereich im Projekt | G10: Projektleiterin
A11: Monatsbruttobezug exkl. LNK (i) (bitte nur Zahl eingeben!) | G11: € 2,500.00
A12: Arbeitszeit/Woche in Stunden (bitte nur Zahl eingeben!) | G12: 38.5
A13: Stunden/Woche für das Projekt (bitte nur Zahl eingeben!) | G13: 5
A14: Start der Projekttätigkeit (TT.MM.JJJJ) | G14: 2020-01-01
A15: Ende der Projekttätigkeit (TT.MM.JJJJ) | G15: 2021-06-30
A16: Laufzeit in Monaten (wird automatisch berechnet) | B16: =IF(B15="","",ROUND(12*YEARFRAC(EOMONTH(B14,0),EOMONTH(B15,0),0)-1/12,0)+IF(DAY(B14)<15,0.5,0)+IF(DAY(B15)<15,0,0.5)) ->  | G16: =IF(G15="","",ROUND(12*YEARFRAC(EOMONTH(G14,0),EOMONTH(G15,0),0)-1/12,0)+IF(DAY(G14)<15,0.5,0)+IF(DAY(G15)<15,0,0.5)) -> 18
A17: Monatsbruttobezug Projektstunden | B17: =B11/B12*B13 ->  | G17: =G11/G12*G13 -> € 324.68
A18: Bruttobezug für den Projektzeitraum | B18: =B17*B16 ->  | G18: =G17*G16 -> € 5,844.16
A19: Aliquote SZ für den Projektzeitraum | B19: =B17/12*B16*2 ->  | G19: =G17/12*G16*2 -> € 974.03
A20: LNK | B20: =B18*$B$3 ->  | G20: =G18*$B$3 -> € 1,707.08
A21: LNK SZ | B21: =B19*$E$3 ->  | G21: =G19*$E$3 -> € 284.51
A22: Buttobezug inkl. LNK für den Projektzeitraum (i) | B22: =IFERROR(ROUND(SUM(B18:B21),2),"") ->  | G22: =IFERROR(ROUND(SUM(G18:G21),2),"") -> € 8,809.77
A23: Buttostundensatz inkl. LNK (i) | B23: =IFERROR(ROUND(SUM(B18:B21)/B16/4.33/B13,2),"") ->  | C23: =IFERROR(ROUND(SUM(C18:C21)/C16/4.33/C13,2),"") ->  | G23: € 22.61
A24: (i) Hier werden diverse Hilfestellungen und Informationen zur Verfügung gestellt. Zum Anzeigen bitte die jeweilige Zelle auswählen.
A28: Bestehendes Dienstverhältnis
A29: Neuanstellung
A30: Aufstockung

Sheet Personalkosten freie DN
A1: Personalkostenkalkulation für freies Dienstverhältnis für Unselbständige
A3: Lohnnebenkosten Stand 01.01.2020: | B3: =(20.73+3.9+3+1.53)/100 -> 29.16% | C3: für das monatliche Honorar
B4: Dieser Satz setzt sich wie folgt zusammen: 20,73 % Sozialversicherungsbeitrag Dienstgeber 1,53 % Mitarbeitervorsorge (MV)
B5: Änderungen der Lohnnebenkostensätze sind ggf. selbst anzupassen - dazu bitte die jeweilige Summe anklicken und die Formel korrigieren!
B7: Bitte hier die Dienstnehmer/-innen eintragen | G7: Beispiel
A8: Name der Dienstnehmerin/ des Dienstnehmers | G8: Maria Musterfrau
A9: Tätigkeitbereich im Projekt | G9: Wissenschaftliche Mitarbeiterin
A10: Dienstnehmer/in ab (TT.MM.JJJJ) | G10: 2020-01-01
A11: Monatsbruttobezug exkl. LNK (i) (bitte nur Zahl eingeben!) | G11: € 490.00
A12: Arbeitszeit/Woche in Stunden (bitte nur Zahl eingeben!) | G12: 5
A13: Start der Projekttätigkeit (TT.MM.JJJJ) | G13: 2020-01-01
A14: Ende der Projekttätigkeit (TT.MM.JJJJ) | G14: 2021-06-30
A15: Laufzeit in Monaten (wird automatisch berechnet) | B15: =IF(B14="","",ROUND(12*YEARFRAC(EOMONTH(B13,0),EOMONTH(B14,0),0)-1/12,0)+IF(DAY(B13)<15,0.5,0)+IF(DAY(B14)<15,0,0.5)) ->  | G15: =IF(G14="","",ROUND(12*YEARFRAC(EOMONTH(G13,0),EOMONTH(G14,0),0)-1/12,0)+IF(DAY(G13)<15,0.5,0)+IF(DAY(G14)<15,0,0.5)) -> 18
A16: Bruttobezug für den Projektzeitraum | B16: =B11*B15 ->  | G16: =G11*G15 -> € 8,820.00
A17: LNK | B17: =ROUND(B16*$B$3,2) ->  | G17: =ROUND(G16*$B$3,2) -> € 2,571.91
A18: Buttobezug inkl. LNK für den Projektzeitraum (i) | B18: =IFERROR(ROUND(SUM(B16:B17),2),"") ->  | G18: =IFERROR(ROUND(SUM(G16:G17),2),"") -> € 11,391.91
A19: Buttostundensatz inkl. LNK (i) | B19: =IFERROR(ROUND(SUM(B16:B17)/B15/4.33/B12,2),"") ->  | G19: =IFERROR(ROUND(SUM(G16:G17)/G15/4.33/G12,2),"") -> € 29.23
A20: (i) Hier werden diverse Hilfestellungen und Informationen zur Verfügung gestellt. Zum Anzeigen bitte die jeweilige Zelle auswählen.
